Cogmind - Beta 13 @@@ ROGUE MODE // 2024.03.24 @ 01:23:29 Player: f_ Result: Destroyed by X-57 Shotgunner with High-powered Shotgun Performance ------------- Evolutions (2) 1000 Regions Visited (7) 1400 Robots Destroyed (104) 520 Value Destroyed (2673) 2673 Prototype IDs (14) 280 Alien Tech Used (0) 0 Bonus (976) 976 TOTAL SCORE: 6849 Bonus ------- High Alert Combat Kills 150 Follower Combat Kills 445 Entered Garrisons 200 Aligned with FarCom 300 Friendly Fire -119 Cogmind --------- Core Integrity 0/550 Matter 99/300 Energy 2000/2000 System Corruption 13% Temperature Cool (0) Movement Treading (305) Ox2 Location -8/Garrison Parts ------- > --- POWER (1) -------- F-cell Engine > --- PROPULSION (2) --- Advanced Treads > --- UTILITY (6) ------ Large Storage Unit Superbattery 0b10 Alert Chip Melee Analysis Suite Hardened Medium Armor Plating > --- WEAPON (2) ------- Makeshift Hammer > --- INVENTORY (15) --- Nuclear Core Light Nuclear Core Armored Medium Treads Improved Heat Sink Experimental Sensor Array Improved Weapon Shielding Improved Weapon Shielding Hardened Medium Armor Plating Shield Generator Drone Bay (2/2) Heavy Particle Gun Particle Cannon Guided Missile Launcher Peak State ------------ > --- POWER ------------ Light Nuclear Core > --- PROPULSION ------- Carbon-fiber Leg Titanium Leg > --- UTILITY ---------- Small Storage Unit Superbattery 0b10 Alert Chip Melee Analysis Suite Melee Analysis Suite Drone Bay > --- WEAPON ----------- AWS/Gauss > --- INVENTORY -------- Experimental Sensor Array Drone Bay Heavy EM Shotgun Gauss Rifle Proton Missile Launcher Makeshift Hammer [Rating: 56] Favorites ----------- Power Light Nuclear Core Engine F-cell Engine Power Core Light Nuclear Core Propulsion Compact Wheel Treads Advanced Treads Leg Makeshift Leg Wheel Compact Wheel Utility 0b10 Alert Chip Device Drone Bay Storage Small Storage Unit Processor 0b10 Alert Chip Hackware Hacking Suite Protection Reactive Plating Weapon Makeshift Hammer Energy Gun Heavy Particle Gun Energy Cannon Beam Cannon Ballistic Gun AWS/Gauss Ballistic Cannon Assault Cannon Launcher EMP Blaster Impact Weapon Makeshift Hammer Special Melee Weapon Datajack Build | -11 -10 -10 -10 -9 -8 -8 -8 ------- Run | Yrd Mat Min Exi Min Mat Sto Gar Slots Evolved 4 | . . . . . 4 . . Power . | . . . . . . . . Propulsion . | . . . . . . . . Utility 4 | . . . . . 4 . . Weapon . | . . . . . . . . Parts Attached 114 | 6 3 1 3 9 16 74 2 Power 9 | 1 1 . . 1 . 6 . Engine 4 | 1 . . . . . 3 . Core 5 | . 1 . . 1 . 3 . Reactor . | . . . . . . . . Propulsion 18 | 2 . . . 4 2 10 . Treads 5 | . . . . . . 5 . Leg 8 | . . . . 3 2 3 . Wheel 5 | 2 . . . 1 . 2 . Hover . | . . . . . . . . Flight . | . . . . . . . . Utility 28 | 1 1 1 2 2 6 14 1 Device 9 | . 1 1 . . 2 5 . Storage 5 | 1 . . 1 1 1 1 . Processor 7 | . . . 1 1 2 3 . Hackware 1 | . . . . . . 1 . Protection 6 | . . . . . 1 4 1 Artifact . | . . . . . . . . Weapon 59 | 2 1 . 1 2 8 44 1 Energy Gun 16 | 1 . . . . 2 13 . Energy Cannon 2 | . 1 . . . 1 . . Ballistic Gun 15 | 1 . . 1 1 3 9 . Ballistic Cannon 2 | . . . . . . 2 . Launcher 11 | . . . . 1 1 9 . Special Weapon . | . . . . . . . . Impact Weapon 11 | . . . . . 1 10 . Slashing Weapon . | . . . . . . . . Piercing Weapon . | . . . . . . . . Special Melee Weapon 2 | . . . . . . 1 1 Unidentified Prototypes 12 | . . 1 3 . 2 6 . Corrupted Parts 1 | . . . . . . 1 . System Corruption 4 | . . . . . . 4 . Parts Lost 22 | . . . . 2 . 18 2 Power 4 | . . . . 1 . 3 . Propulsion 7 | . . . . 1 . 6 . Utility 6 | . . . . . . 5 1 Weapon 5 | . . . . . . 4 1 Highest Loss Streak 8 | . . . . 1 . 8 2 To Critical Strikes . | . . . . . . . . Average Slot Usage (%) 89 | . 97 100 89 83 90 90 82 Engine 1 | . 5 . . . . 1 9 Core 7 | . 8 14 14 13 9 4 . Treads 4 | . . . . . . 8 9 Leg 7 | . . . . 22 17 4 . Wheel 7 | . 28 28 28 4 . 4 . Device 3 | . 11 14 5 . 7 3 . Storage 15 | . 14 14 14 13 18 15 18 Processor 21 | . . . 8 14 26 29 19 Protection 2 | . . . . . 1 2 16 Energy Gun 4 | . 14 14 4 . 2 5 . Energy Cannon 1 | . 7 14 4 . . . . Ballistic Gun 4 | . 6 . 8 13 6 1 . Impact Weapon 3 | . . . . . 2 4 9 Naked Turns . | . . . . . . . . Heaviest Build 53 | 13 16 16 21 20 27 51 53 Greatest Support 44 | 26 26 26 26 33 37 44 22 Greatest Overweight (x) 10 | . . . . 1 . 10 2 Average Overweight (x) . | . . . . . . . 1 Largest Inventory Capacity 15 | 8 8 8 8 8 8 15 15 Average Capacity 8 | 6 8 8 8 7 8 8 15 Most Carried 15 | 5 8 8 8 8 8 15 15 Average Carried 7 | 1 4 8 7 7 6 6 13 Final Capacity 15 | 8 8 8 8 8 8 15 15 Final Carried 15 | 1 8 8 8 8 7 15 14 Class Distribution -------------------- 61% | Mutant 16% | Scavenger-Mutant 8% | Commander-Assassin 6% | Assassin 3% | Commander-Skirmisher 3% | Skirmisher Dominant Class ---------------- Mutant | -10/Materials Mutant | -10/Mines Mutant | -10/Exiles Mutant | -9/Mines Scavenger-Mutant | -8/Materials Mutant | -8/Storage Mutant | -8/Garrison Resources | -11 -10 -10 -10 -9 -8 -8 -8 ----------- Run | Yrd Mat Min Exi Min Mat Sto Gar Matter Collected 1684 | 166 147 . . 141 172 1058 . Remotely . | . . . . . . . . Salvage Created 4160 | . 403 . . 440 183 3115 19 Parts 202 | . 39 . . 26 14 123 . Haulers Intercepted 7 | . 1 . . . . 6 . Recyclers Shooed 1 | . . . . . . 1 . Parts Field Recycled . | . . . . . . . . Retrieved Matter . | . . . . . . . . Parts Self-Destructed . | . . . . . . . . Prevented . | . . . . . . . . Kills | -11 -10 -10 -10 -9 -8 -8 -8 ------- Run | Yrd Mat Min Exi Min Mat Sto Gar Combat Hostiles Destroyed 70 | . 11 . . 16 2 41 . Melee 7 | . . . . . . 7 . Guns 35 | . 7 . . 16 2 10 . Cannons 4 | . 4 . . . . . . AOE 10 | . . . . . . 10 . Classes Destroyed 16 | . 6 . . 4 1 5 . Worker 6 | . 1 . . 1 . 4 . Builder 5 | . . . . . . 5 . Hauler 7 | . 1 . . . . 6 . Recycler 12 | . . . . 1 1 10 . Mechanic 1 | . . . . . . 1 . Operator 6 | . 1 . . . . 5 . Drone 1 | . . . . . . 1 . Watcher 5 | . 2 . . . . 2 1 Swarmer 16 | . 6 . . 2 . 8 . Grunt 29 | . 5 . . 4 . 20 . Brawler 3 | . . . . . . 3 . Duelist 1 | . . . . 1 . . . Sentry 11 | . . . . . 2 9 . Demolisher 1 | . . . . 1 . . . Hunter 1 | . . . . . . 1 . Assembled 8 | . . . . 8 . . . Best Kill Streak 10 | . 3 . . 10 2 7 1 Combat Bots Only 9 | . 2 . . 9 2 6 . Max Kills in Single Turn 4 | . 1 . . 1 1 4 1 Gunslinging . | . . . . . . . . Exploded 2 | . . . . . . 2 . Melee 1 | . . . . . . 1 . Uniques/NPCs Destroyed . | . . . . . . . . Combat | -11 -10 -10 -10 -9 -8 -8 -8 -------- Run | Yrd Mat Min Exi Min Mat Sto Gar Hostile Shots Fired 335 | . 39 . . 30 16 208 42 Missed 89 | . 15 . . 11 6 46 11 Damage Taken 3864 | . 280 . . 237 140 2865 342 Core 690 | . 57 . . 75 31 450 77 Absorbed by Shields . | . . . . . . . . Ignored by Resistances 80 | . . . . . . 80 . Regen/Repaired (Parts) 62 | . . . . . 62 . . Core Remaining (%) 73 | 100 . . . 47 . . . Volleys Fired 123 | . 36 . . 1 5 81 . Largest 2 | . 2 . . 1 2 2 . Hottest 120 | . 110 . . 33 78 120 . Shots Fired 302 | . 72 . . 61 17 152 . Gun 237 | . 59 . . 60 17 101 . Cannon 31 | . 13 . . . . 18 . Launcher 34 | . . . . 1 . 33 . Special . | . . . . . . . . Kinetic 156 | . 23 . . 60 14 59 . Thermal 86 | . 49 . . . . 37 . Explosive 7 | . . . . 1 . 6 . Electromagnetic 53 | . . . . . 3 50 . Robot Hit Streak 15 | . 15 . . 7 8 12 . Robot Miss Streak 8 | . 4 . . 6 5 8 . Penetration Max 1 | . . . . . 1 . . Secondary Targets 2 | . 2 . . . . . . Max Gunslinging Chain 1 | . 1 . . . . . . Autonomous 108 | . . . . 60 10 38 . Shots Hit Robots 267 | . 46 . . 36 11 171 3 Core Hits 118 | . 23 . . 20 3 72 . Critical Kills 3 | . . . . 1 1 1 . Critical Parts Destroyed 11 | . . . . 1 . 9 1 Critical Strikes 16 | . 1 . . 2 1 11 1 Burn 1 | . 1 . . . . . . Destroy 3 | . . . . 2 1 . . Blast 1 | . . . . . . 1 . Smash 11 | . . . . . . 10 1 Melee Attacks 156 | . . . . . 4 130 22 Impact 155 | . . . . . 4 129 22 Slashing . | . . . . . . . . Piercing . | . . . . . . . . Sneak Attacks 18 | . . . . . . 17 1 Combat Hostiles 1 | . . . . . . 1 . Follow-up Attacks . | . . . . . . . . Damage Inflicted 9689 | . 578 . . 1064 326 7540 181 Guns 3189 | . 384 . . 1007 326 1472 . Cannons 453 | . 194 . . . . 259 . Explosions 1767 | . . . . 57 . 1710 . Melee 4280 | . . . . . . 4099 181 Ramming . | . . . . . . . . Kinetic 2478 | . 136 . . 1007 287 1048 . Thermal 1006 | . 442 . . . . 564 . Explosive 552 | . . . . 57 . 495 . Electromagnetic 1373 | . . . . . 39 1334 . Impact 4280 | . . . . . . 4099 181 Slashing . | . . . . . . . . Piercing . | . . . . . . . . Highest Corruption 13 | . . . . . . 13 13 Average Corruption 7 | . . . . . . 7 13 Corruption Purged . | . . . . . . . . Corruption Blocked . | . . . . . . . . Effects 105 | . . . . . . 85 20 Message Errors 23 | . . . . . . 20 3 Matter Fused 32 | . . . . . . 25 7 Heat Flow Errors 6 | . . . . . . 3 3 Energy Discharges 14 | . . . . . . 13 1 Parts Rejected 1 | . . . . . . 1 . Data Loss (minor) 13 | . . . . . . 10 3 Data Loss (major) 8 | . . . . . . 6 2 Misfires 3 | . . . . . . 3 . Alerts 4 | . . . . . . 3 1 Misdirections 1 | . . . . . . 1 . Overload Shots . | . . . . . . . . Overflow Damage 1562 | . . . . . . 1458 104 Projectiles . | . . . . . . . . Explosions 66 | . . . . . . 66 . Melee 1496 | . . . . . . 1392 104 Knockbacks 13 | . . . . . . 12 1 Impact 12 | . . . . . . 11 1 Kinetic 1 | . . . . . . 1 . Secondary . | . . . . . . . . Self-Inflicted Damage 271 | . . . . . . 271 . Shots 7 | . . . . . . 7 . Rammed . | . . . . . . . . Targets Rammed . | . . . . . . . . Kicked . | . . . . . . . . Crushed . | . . . . . . . . Highest Temperature 436 | . 294 . . 2 6 436 212 Average Temperature 103 | . 77 . . 2 3 137 96 Received Heat Transfer 893 | . 63 . . 38 36 756 . Effects 7 | . 1 . . . . 6 . Shutdowns 1 | . . . . . . 1 . Energy Bleed 2 | . 1 . . . . 1 . Damage (major) 4 | . . . . . . 4 . Siege Activations . | . . . . . . . . Robots Corrupted 3 | . . . . . . 3 . Combat Hostiles 1 | . . . . . . 1 . Parts Fried 27 | . . . . . . 26 1 Impact Corruptions 57 | . . . . . . 53 4 Robots Melted . | . . . . . . . . Combat Hostiles . | . . . . . . . . Parts Melted 3 | . 2 . . . . 1 . Heat Transferred 2261 | . 1221 . . . . 1040 . Parts Sabotaged . | . . . . . . . . Parts Stolen . | . . . . . . . . Parts Stripped . | . . . . . . . . Power Chain Reactions 9 | . . . . . . 9 . Alert | -11 -10 -10 -10 -9 -8 -8 -8 ------- Run | Yrd Mat Min Exi Min Mat Sto Gar Peak Influence 928 | . 271 66 . 195 90 928 584 Initial 544 | . . 66 . . 16 21 544 Average 325 | . 128 66 . 35 55 488 566 Maximum Alert Level 3 | . 1 . . . . 3 2 Low Security (%) 43 | 100 76 100 . 100 100 12 . Level 1 14 | . 23 . . . . 23 . Level 2 34 | . . . . . . 51 100 Level 3 6 | . . . . . . 12 . Level 4 . | . . . . . . . . Level 5 . | . . . . . . . . High Security . | . . . . . . . . Max Security . | . . . . . . . . Squads Dispatched 19 | . 2 . . . 1 16 . Investigation 4 | . 1 . . . . 3 . Extermination . | . . . . . . . . Reinforcement 7 | . 1 . . . 1 5 . Assault 1 | . . . . . . 1 . Garrison 7 | . . . . . . 7 . Intercept . | . . . . . . . . Searches Triggered . | . . . . . . . . Construction Impeded . | . . . . . . . . Haulers Reinforced . | . . . . . . . . Active Scanning Responses . | . . . . . . . . Cargo Convoy Interrupts . | . . . . . . . . Stealth | -11 -10 -10 -10 -9 -8 -8 -8 --------- Run | Yrd Mat Min Exi Min Mat Sto Gar Distress Signals 5 | . 1 . . . 1 2 1 Communications Jammed . | . . . . . . . . Distress Signals . | . . . . . . . . Times Spotted 120 | . 18 . . 26 8 64 4 Peak Tracking Total 12 | . 3 . . 12 3 7 4 Tactical Retreats 9 | . 2 . . 4 . 3 . Traps | -11 -10 -10 -10 -9 -8 -8 -8 ------- Run | Yrd Mat Min Exi Min Mat Sto Gar Traps Triggered 6 | . 2 . . . . 2 2 Indirectly 1 | . . . . . . 1 . Trap Hack Attempts 31 | . . . . . . . 31 Triggered . | . . . . . . . . Disarmed 3 | . . . . . . . 3 Reprogrammed . | . . . . . . . . Reused . | . . . . . . . . Traps Extracted . | . . . . . . . . Installed . | . . . . . . . . Triggered . | . . . . . . . . Machines | -11 -10 -10 -10 -9 -8 -8 -8 ---------- Run | Yrd Mat Min Exi Min Mat Sto Gar Machines Disabled 15 | . . . . . . 15 . Max in Single Turn 2 | . . . . . . 2 . Machines Repaired . | . . . . . . . . Machines Dismantled . | . . . . . . . . Machines Sabotaged . | . . . . . . . . Overloaded Fab Kills . | . . . . . . . . Hacking | -11 -10 -10 -10 -9 -8 -8 -8 --------- Run | Yrd Mat Min Exi Min Mat Sto Gar Machines Accessed 18 | . 7 . . . 2 7 2 Terminals 16 | . 7 . . . 1 6 2 Fabricators . | . . . . . . . . Repair Stations 1 | . . . . . 1 . . Recycling Units . | . . . . . . . . Scanalyzers . | . . . . . . . . Garrison Access 1 | . . . . . . 1 . Total Hacks 29 | . 14 . . . 3 9 3 Successful 14 | . 4 . . . 3 6 1 Failed 15 | . 10 . . . . 3 2 Catastrophic . | . . . . . . . . Database Lockouts . | . . . . . . . . Manual 2 | . . . 1 . . 1 . Terminals 24 | . 14 . . . 1 6 3 Fabricators . | . . . . . . . . Repair Stations 2 | . . . . . 2 . . Recycling Units . | . . . . . . . . Scanalyzers . | . . . . . . . . Garrison Access 3 | . . . . . . 3 . Terminal Hacks 11 | . 4 . . . 1 5 1 Prototype ID Bank 1 | . 1 . . . . . . Open Door 4 | . . . . . . 4 . Alert Level 1 | . 1 . . . . . . Locate Traps 3 | . 1 . . . 1 1 . Security Status 1 | . 1 . . . . . . Garrison Registry 1 | . . . . . . . 1 Fabricator Hacks . | . . . . . . . . Repair Station Hacks 2 | . . . . . 2 . . Scan Component 1 | . . . . . 1 . . Repair 1 | . . . . . 1 . . Recycling Unit Hacks . | . . . . . . . . Scanalyzer . | . . . . . . . . Garrison Access Hacks 1 | . . . . . . 1 . Unlock Access 1 | . . . . . . 1 . Unauthorized Hacks . | . . . . . . . . Terminals . | . . . . . . . . Fabricators . | . . . . . . . . Repair Stations . | . . . . . . . . Recycling Units . | . . . . . . . . Scanalyzers . | . . . . . . . . Garrison Access . | . . . . . . . . Data Cores Recovered . | . . . . . . . . Used . | . . . . . . . . Hacking Detections 13 | . 5 . . . . 6 2 Full Trace Events 1 | . . . . . . 1 . Feedback Events . | . . . . . . . . Feedback Blocked . | . . . . . . . . Robot Schematics Acquired . | . . . . . . . . Robots Built . | . . . . . . . . Authchips . | . . . . . . . . Time . | . . . . . . . . Total Robot Build Rating . | . . . . . . . . Part Schematics Acquired . | . . . . . . . . Parts Built . | . . . . . . . . Authchips . | . . . . . . . . Time . | . . . . . . . . Total Part Build Rating . | . . . . . . . . Parts Repaired 1 | . . . . . 1 . . Time 44 | . . . . . 44 . . Parts Recycled . | . . . . . . . . Recycled Matter . | . . . . . . . . Retrieved Matter . | . . . . . . . . Retrieved Components . | . . . . . . . . Parts Scanalyzed . | . . . . . . . . Part Schematics Acquired . | . . . . . . . . Parts Damaged . | . . . . . . . . Bothacking | -11 -10 -10 -10 -9 -8 -8 -8 ------------ Run | Yrd Mat Min Exi Min Mat Sto Gar Used RIF Installer . | . . . . . . . . Robots Hacked . | . . . . . . . . Non-combat . | . . . . . . . . Combat . | . . . . . . . . Robot Hacks Applied . | . . . . . . . . Relay Couplers Released . | . . . . . . . . Fabnet Peak Effective % . | . . . . . . . . Robots Rewired 1 | . . . . . . 1 . Allies Hacked . | . . . . . . . . Hacks Repelled . | . . . . . . . . Allies | -11 -10 -10 -10 -9 -8 -8 -8 -------- Run | Yrd Mat Min Exi Min Mat Sto Gar Total Allies 10 | . . . . . . 10 . Largest Group 10 | . . . . . . 10 . Highest-Rated Group 173 | . . . . . . 173 . Highest-Rated Ally 29 | . . . . . . 29 . Total Orders 15 | . . . . . . 15 . EXPLORE 15 | . . . . . . 15 . Ally Attacks 82 | . . . . . . 82 . Total Damage 1185 | . . . . . . 1185 . Kills 14 | . . . . . . 14 . Allies Corrupted . | . . . . . . . . Allies Melted . | . . . . . . . . Intel | -11 -10 -10 -10 -9 -8 -8 -8 ------- Run | Yrd Mat Min Exi Min Mat Sto Gar Robot Analysis Total . | . . . . . . . . Derelict Logs Recovered 4 | . . 2 . 2 . . . Drone Launches 15 | . . . . . . 15 . Drone Recoveries 10 | . . . . . . 10 . Exploration | -11 -10 -10 -10 -9 -8 -8 -8 ------------- Run | Yrd Mat Min Exi Min Mat Sto Gar Turns Passed 7533 | 41 662 163 325 1486 506 3825 525 Spaces Moved 4240 | 36 348 157 230 1137 266 1926 140 Core 18 | 10 . . . . . 8 . Treads 1026 | . . . . . . 886 140 Legs 1653 | . . . . 926 266 461 . Wheels 1543 | 26 348 157 230 211 . 571 . Hover . | . . . . . . . . Flight . | . . . . . . . . Fastest Speed 50 | 50 90 90 90 90 130 90 225 Average Speed 130 | 78 90 90 90 124 132 137 288 Slowest Speed 550 | 90 90 90 90 140 135 550 305 Overloaded Moves . | . . . . . . . . Propulsion Burnouts . | . . . . . . . . Robots Hopped . | . . . . . . . . Cave-ins Triggered . | . . . . . . . . Exploration Rate (%) 53 | 4 73 44 62 100 20 98 29 Regions Visited 7 Branch Regions 4 Pre-discovered Areas 1 | . . . . 1 . . . Known Exits Taken 3 | . . 1 . 1 . 1 . Unknown Exits Taken 4 | 1 1 . 1 . 1 . . Scrap Searched 2 | . . . . 2 . . . Spaces Dug 47 | . . . . . 3 32 12 Terrain Destroyed 227 | . . . . 72 11 132 12 Melee 47 | . . . . . 3 32 12 Projectile 97 | . . . . 61 8 28 . AOE 83 | . . . . 11 . 72 . Terrain Rammed . | . . . . . . . . Walls Destroyed . | . . . . . . . . Machines Disabled . | . . . . . . . . Actions | -11 -10 -10 -10 -9 -8 -8 -8 --------- Run | Yrd Mat Min Exi Min Mat Sto Gar Total 5935 | 48 629 179 351 1214 413 2861 240 Wait 1062 | . 231 18 104 38 98 534 39 Move 4234 | 35 347 156 229 1136 265 1926 140 Hop . | . . . . . . . . Pick Up 112 | 7 10 2 6 15 11 60 1 Fast Attach 18 | . . . 1 3 3 11 . Attach 66 | 6 1 . 1 4 11 41 2 Detach 14 | . . . 1 1 3 9 . Swap 30 | . 2 1 1 2 2 22 . Drop 83 | . 2 2 8 14 11 45 1 Fire 123 | . 36 . . 1 5 81 . Melee 156 | . . . . . 4 130 22 Ram . | . . . . . . . . Kick . | . . . . . . . . Crush . | . . . . . . . . Escape Stasis 4 | . . . . . . . 4 Rewire 2 | . . . . . . 2 . Trap 31 | . . . . . . . 31 Miscellaneous . | . . . . . . . . Route ------- -11/Scrapyard -10/Materials (discovered 2 exits: [*Mat] / [*Min]) -10/Mines (discovered 2 exits: [*Mat] / *Exi) -10/Exiles (discovered 2 exits: [*Min x2]) -9/Mines (discovered 2 exits: *Mat x2) -8/Materials (discovered 2 exits: Fac / *Sto) -8/Storage (discovered 3 exits: *Fac / [*Rec] / Gar) -8/Garrison (discovered 3 exits: *Fac x3) History --------- Turn | Location | Event 21 | -11/Scrapyard | Discovered new exit (range 16) 42 | -11/Scrapyard | Entered Materials 308 | -10/Materials | Build established: Mutant 315 | -10/Materials | Discovered new exit (range 14) 697 | -10/Materials | Discovered new exit (range 9) 704 | -10/Materials | Entered Mines 714 | -10/Mines | Discovered new exit (range 12) 746 | -10/Mines | Found a damaged Exp. Sensor Array with a note attached 750 | -10/Mines | Found Prototype Device 751 | -10/Mines | Identified Exp. Sensor Array 790 | -10/Mines | Identified exit to Exiles 791 | -10/Mines | Learned Materials stockpile data 864 | -10/Mines | Deemed a non-threat by the Exiles lab entrance 867 | -10/Mines | Entered Exiles 879 | -10/Exiles | Discovered new exit (range 15) 896 | -10/Exiles | Met 8R-AWN 912 | -10/Exiles | Met EX-HEX 938 | -10/Exiles | Met EX-BIN 951 | -10/Exiles | Aligned with FarCom system 952 | -10/Exiles | Given EX-Vault access code 973 | -10/Exiles | Opened EX-Vault 979 | -10/Exiles | Found Prototype Ballistic Gun 980 | -10/Exiles | Identified AWS/Gauss 982 | -10/Exiles | Found Prototype Storage 983 | -10/Exiles | Identified Superbattery 987 | -10/Exiles | Found Prototype Processor 987 | -10/Exiles | Identified 0b10 Alert Chip 1020 | -10/Exiles | Warned to stay clear of 0b10 Research branches 1024 | -10/Exiles | Exiles lab attacked by MAIN.C 1077 | -10/Exiles | Discovered new exit (range 14) 1192 | -10/Exiles | Stole three prototypes: AWS/Gauss, 0b10 Alert Chip, Superbattery 1192 | -10/Exiles | Entered Mines 1210 | -9/Mines | Discovered new exit (range 12) 1240 | -9/Mines | Identified exit to Materials 1322 | -9/Mines | Assembled infested the area 1324 | -9/Mines | Learned 4 Materials zone layouts 1327 | -9/Mines | Assisted by a Guerilla fighting off Assembled 1424 | -9/Mines | Core integrity fell below 50% 1449 | -9/Mines | Destroyed 9 combat bots 1796 | -9/Mines | Discovered exit to Materials (range 10) 1846 | -9/Mines | Learned location of Storage (-8) 2097 | -9/Mines | A weapon hastily lodged in a ceiling crevice suddenly fell to the ground 2678 | -9/Mines | Entered Materials 2678 | -8/Materials | Evolved 4 slots: Utility x4 2679 | -8/Materials | Identified exit to Factory 2738 | -8/Materials | Repaired Mak. Leg 2774 | -8/Materials | Discovered new exit (range 14) 3000 | -8/Materials | Build established: Scavenger-Mutant 3184 | -8/Materials | Entered Storage 3667 | -8/Storage | Build established: Mutant 3779 | -8/Storage | Discovered new exit (range 3) 4595 | -8/Storage | Garrison activated, responded to threat 4996 | -8/Storage | Discovered exit to Factory (range 15) 5102 | -8/Storage | Build established: Scavenger-Mutant 5132 | -8/Storage | Garrison activated, responded to threat 5159 | -8/Storage | Core integrity fell below 50% 5164 | -8/Storage | System corruption reached 10% 5197 | -8/Storage | Lost 8 parts (1p2n3u2w) 5502 | -8/Storage | Build established: Assassin 5932 | -8/Storage | Assisted by bots powering up and referring to "LRC-V3" 6221 | -8/Storage | Build established: Commander-Assassin 6610 | -8/Storage | Found Prototype Launcher 6614 | -8/Storage | Garrison activated, responded to threat 6634 | -8/Storage | Identified Gui. Missile Launcher 6784 | -8/Storage | First assault squad dispatched 6847 | -8/Storage | Core integrity fell below 20% 6877 | -8/Storage | Lost 6 allies 7009 | -8/Storage | Identified exit to Garrison 7009 | -8/Storage | Entered Garrison 7088 | -8/Garrison | Discovered exit to Factory (range 49) 7088 | -8/Garrison | Discovered exit to Factory (range 56) 7088 | -8/Garrison | Discovered exit to Factory (range 35) 7147 | -8/Garrison | Build established: Mutant 7534 | -8/Garrison | Destroyed by X-57 Shotgunner with High-powered Shotgun Last Messages --------------- 07527_ W-25 Informer system corrupted by crushing effect. 07527_ W-25 Informer system corrupted by crushing effect. 07527_ W-25 Informer knocked back. 07527_ W-25 Informer springs to life. 07527_ W-25 Informer sends out distress signal. 07528_ W-25 Informer system terminally corrupted. 07528_ Imp. Hover Unit fried. 07528_ X-57 Shotgunner springs to life. 07528_ Datajack destroyed. 07528_ X-57 Shotgunner springs to life. 07531_ System corrupted: Matter fused (-8). 07532_ Hrd. Light Armor Plating destroyed. 07533_ X-57 Shotgunner suffers critical hit (Smash). 07533_ Destroyed Nuclear Core. 07533_ X-57 Shotgunner system corrupted by crushing effect. Map ----- +----------------------------------------------------+ | # #????#!!!!#?????????????????????? | | # ###### !#?????????????????????? | | + #?????????????????????? | | ###### !#?????????????????????? | | ####????#!!!!#?????????????????????? | | ????????######?????????????????????? | | ???????????????????????????????????? | | ???????????????????????????????????? | | ???????????????????????????????????? | | ???????????????????????????????????? | | ???????????????????????????????????? | | ###????????????????????????????????? | | #????????????????????????????????? | | #????????????????????????????????? | | #????????????????????????????????? | | #????????????????????????????????? | | ^^#????????????????????????????????? | | #????????????????????????????????? | | #???????????????############?????? | | #???????????????#""""""""""#?????? | | #?????????????###"!][![]"""#?????? | | #?????????????# ""#?????? | | ############### +++/ !"#?????? | | " +xx/ %!"#?????? | | + +x / !"#?????? | | #####+####### ## ///x@ !"#?????? | | ##### #?????# ## ""#?????? | | #?????# ####"*!!!! """#?????? | | #####+###???# #??#""""""""""#?????? | | #???# #"#???# #??############?????? | | #???# "#???# ###?????????????????? | | #???# "#???# #?????????????????? | | #???# "#???# < #?????????????????? | | ##### #"#???# #?????????????????? | | ###???# ###?????????????????? | | "####+#?????# #???????????????????? | | #??# #?????# #???????????????????? | | ##??# #?????# #???????????????????? | | ????# #???### ############????????? | | ????# #???# ^ #????????? | | ????# ##??# ^ #????????? | | ????# "#??######""""### #????????? | | ????# "#???????# + + #????????? | | ????# "#???????######## #????????? | | ????# "#??????????????# #????????? | | ????##"#??????????????# #????????? | | ?????###??????????????# #????????? | | ??????????????????????#####????????? | | ???????????????????????????????????? | | ???????????????????????????????????? | +----------------------------------------------------+ Best States ------------- Heat Dissipation 31 Energy Generation 19 Energy Capacity 2000 Matter Stores 300 Matter Capacity 300 Sight Range 20 Robot Scan Range 20 Terrain Scan Density 110 Jamming Range 12 Armor Coverage 375 Resistance: KI 20 Resistance: EX 25 Evasion (%) 55 Targeting Accuracy 8 Melee Accuracy 10 Recoil Reduction 2 Offensive Hacking 10 Item Schematics ----------------- None Robot Schematics ------------------ None Fabricated ------------ Nothing Alien Tech Used ----------------- None Achievements -------------- None Challenges ------------ None Game ------ Seed HugeSubdwellerChainsword Manual? 0 Play Time 01:44:46 Cumulative 48.1 hours Start 2024.03.23 @ 23:36:57 End 2024.03.24 @ 01:23:29 Sessions 1 Manual Loads 0 Difficulty Rogue Special Mode None Game No. 35 Rogue 33 Adventurer 0 Explorer 2 Win Type - Total 0 Types 0/0/0/0/0/0/0/0/0 Lore% 16 Gallery% 28 Achievement% 19 Wizard Run 0 Options --------- Layout 1 ASCII 0 Keyboard 0 Movement Mouse Keybinds 0 Fullscreen 2 Font 48/Tamsyn Map View 50x35 Zoom Use 0% Tactical HUD 1 Map Filters NONE Filters NONE Steam 1 RUN: b9611930-33ea-4dd3-8b1b-f54d647d4433